Cogmind - Beta 13 @@@ ROGUE MODE // 2024.05.25 @ 13:28:49 Player: Barbarossa Result: Destroyed by G-47 Trooper with Particle Gun Performance ------------- Evolutions (2) 1000 Regions Visited (3) 600 Robots Destroyed (58) 290 Value Destroyed (1557) 1557 Prototype IDs (6) 120 Alien Tech Used (0) 0 Bonus (2) 2 TOTAL SCORE: 3569 Bonus ------- High Alert Combat Kills 2 Cogmind --------- Core Integrity 0/550 Matter 178/300 Energy 76/100 System Corruption 0% Temperature Cool (39) Movement Core (400) Ox7 Location -8/Materials Parts ------- > --- POWER (1) -------- (None) > --- PROPULSION (4) --- (None) > --- UTILITY (4) ------ Large Storage Unit Signal Interpreter Hacking Suite > --- WEAPON (2) ------- Beam Rifle > --- INVENTORY (15) --- Wheel Compact Wheel Compact Wheel Beam Rifle Beam Rifle Beam Rifle Advanced Beam Rifle Datajack Peak State ------------ > --- POWER ------------ Improved Ion Engine > --- PROPULSION ------- Light Treads Improved Treads Wheel Compact Wheel > --- UTILITY ---------- Large Storage Unit Sensor Array Signal Interpreter Hacking Suite > --- WEAPON ----------- Spread Laser Advanced Beam Rifle > --- INVENTORY -------- Heavy Ion Engine Light Treads Light Treads Light Treads Wheel Compact Wheel Compact Wheel Beam Rifle Beam Rifle Beam Rifle Beam Rifle Autogun Autogun Autogun Datajack [Rating: 21] Favorites ----------- Power Improved Ion Engine Engine Improved Ion Engine Propulsion Light Treads Treads Light Treads Leg Aluminum Leg Wheel Compact Wheel Utility Large Storage Unit Device Sensor Array Storage Large Storage Unit Processor Signal Interpreter Hackware Hacking Suite Weapon Autogun Energy Gun Spread Laser Ballistic Gun Autogun Build | -11 -10 -9 -8 ------- Run | Yrd Mat Mat Mat Slots Evolved 4 | . . 2 2 Power . | . . . . Propulsion 2 | . . 2 . Utility 2 | . . . 2 Weapon . | . . . . Parts Attached 51 | . 8 27 16 Power 5 | . . 4 1 Engine 5 | . . 4 1 Core . | . . . . Reactor . | . . . . Propulsion 23 | . 4 14 5 Treads 14 | . . 9 5 Leg . | . . . . Wheel 9 | . 4 5 . Hover . | . . . . Flight . | . . . . Utility 6 | . 2 1 3 Device 2 | . . . 2 Storage 2 | . 1 1 . Processor 1 | . 1 . . Hackware 1 | . . . 1 Protection . | . . . . Artifact . | . . . . Weapon 17 | . 2 8 7 Energy Gun 10 | . . 6 4 Energy Cannon . | . . . . Ballistic Gun 7 | . 2 2 3 Ballistic Cannon . | . . . . Launcher . | . . . . Special Weapon . | . . . . Impact Weapon . | . . . . Slashing Weapon . | . . . . Piercing Weapon . | . . . . Special Melee Weapon . | . . . . Unidentified Prototypes 4 | . . 3 1 Parts Lost 17 | . . 1 16 Power 2 | . . . 2 Propulsion 9 | . . 1 8 Utility 2 | . . . 2 Weapon 4 | . . . 4 Highest Loss Streak 9 | . . 1 9 To Critical Strikes . | . . . . Average Slot Usage (%) 94 | . 88 99 84 Engine 10 | . 14 11 7 Treads 17 | . . 24 16 Wheel 18 | . 27 18 9 Device 1 | . . . 6 Storage 11 | . 14 11 9 Processor 8 | . 2 11 9 Hackware 1 | . . . 9 Energy Gun 8 | . . 10 7 Ballistic Gun 14 | . 28 11 9 Naked Turns . | . . . . Heaviest Build 34 | 14 31 33 34 Greatest Support 80 | 20 26 80 60 Greatest Overweight (x) 10 | . 1 2 10 Average Overweight (x) 1 | . . 1 1 Largest Inventory Capacity 15 | . 15 15 15 Average Capacity 14 | . 14 15 15 Most Carried 15 | . 15 15 15 Average Carried 13 | . 11 14 12 Final Capacity 15 | 8 15 15 15 Final Carried 15 | 6 15 15 8 Class Distribution -------------------- 88% | Mutant 11% | Scavenger-Mutant Dominant Class ---------------- Mutant | -10/Materials Mutant | -9/Materials Mutant | -8/Materials Resources | -11 -10 -9 -8 ----------- Run | Yrd Mat Mat Mat Matter Collected 1361 | 200 86 733 342 Remotely . | . . . . Salvage Created 2437 | . 154 1395 888 Parts 126 | . 10 78 38 Haulers Intercepted 5 | . . 3 2 Recyclers Shooed 5 | . . 4 1 Parts Field Recycled . | . . . . Retrieved Matter . | . . . . Parts Self-Destructed . | . . . . Prevented . | . . . . Kills | -11 -10 -9 -8 ------- Run | Yrd Mat Mat Mat Combat Hostiles Destroyed 36 | . 2 18 16 Guns 36 | . 2 18 16 Classes Destroyed 10 | . 3 6 1 Worker 5 | . 2 3 . Builder 1 | . . 1 . Hauler 5 | . . 3 2 Recycler 6 | . . 4 2 Operator 2 | . . 2 . Watcher 3 | . 2 1 . Swarmer 3 | . . . 3 Grunt 22 | . 2 12 8 Brawler 2 | . . 1 1 Sentry 9 | . . 5 4 Best Kill Streak 9 | . 3 5 9 Combat Bots Only 9 | . 2 5 9 Max Kills in Single Turn 1 | . 1 1 1 Gunslinging . | . . . . Exploded . | . . . . Melee . | . . . . Uniques/NPCs Destroyed . | . . . . Combat | -11 -10 -9 -8 -------- Run | Yrd Mat Mat Mat Hostile Shots Fired 308 | . 11 75 222 Missed 86 | . 3 22 61 Damage Taken 3150 | . 87 700 2363 Core 696 | . 12 126 558 Absorbed by Shields 124 | . . . 124 Core Remaining (%) 87 | 100 95 68 . Volleys Fired 174 | . 22 86 66 Largest 2 | . 2 2 2 Hottest 126 | . 46 88 126 Shots Fired 337 | . 44 171 122 Gun 337 | . 44 171 122 Cannon . | . . . . Launcher . | . . . . Special . | . . . . Kinetic 219 | . 44 86 89 Thermal 118 | . . 85 33 Explosive . | . . . . Electromagnetic . | . . . . Robot Hit Streak 22 | . 9 22 10 Robot Miss Streak 9 | . 5 6 9 Penetration Max . | . . . . Secondary Targets 7 | . 1 1 5 Max Gunslinging Chain 1 | . 1 1 1 Shots Hit Robots 239 | . 22 121 96 Core Hits 151 | . 7 79 65 Critical Kills 1 | . . . 1 Critical Parts Destroyed 1 | . . . 1 Critical Strikes 6 | . . 3 3 Burn 4 | . . 3 1 Destroy 2 | . . . 2 Melee Attacks . | . . . . Impact . | . . . . Slashing . | . . . . Piercing . | . . . . Sneak Attacks . | . . . . Combat Hostiles . | . . . . Follow-up Attacks . | . . . . Damage Inflicted 3664 | . 282 1829 1553 Guns 3664 | . 282 1829 1553 Cannons . | . . . . Explosions . | . . . . Melee . | . . . . Ramming . | . . . . Kinetic 2205 | . 282 814 1109 Thermal 1459 | . . 1015 444 Explosive . | . . . . Electromagnetic . | . . . . Impact . | . . . . Slashing . | . . . . Piercing . | . . . . Highest Corruption . | . . . . Average Corruption . | . . . . Corruption Purged . | . . . . Corruption Blocked . | . . . . Overload Shots . | . . . . Overflow Damage . | . . . . Projectiles . | . . . . Explosions . | . . . . Melee . | . . . . Knockbacks . | . . . . Impact . | . . . . Kinetic . | . . . . Secondary . | . . . . Self-Inflicted Damage . | . . . . Shots . | . . . . Rammed . | . . . . Targets Rammed . | . . . . Kicked . | . . . . Crushed . | . . . . Highest Temperature 442 | . 12 230 442 Average Temperature 73 | . 6 76 73 Received Heat Transfer 1587 | . 48 378 1161 Effects 6 | . . . 6 Shutdowns 1 | . . . 1 Interference 2 | . . . 2 Damage (major) 3 | . . . 3 Siege Activations . | . . . . Robots Corrupted . | . . . . Combat Hostiles . | . . . . Parts Fried . | . . . . Impact Corruptions . | . . . . Robots Melted . | . . . . Combat Hostiles . | . . . . Parts Melted . | . . . . Heat Transferred 2977 | . . 2232 745 Parts Sabotaged . | . . . . Parts Stolen . | . . . . Parts Stripped . | . . . . Power Chain Reactions . | . . . . Alert | -11 -10 -9 -8 ------- Run | Yrd Mat Mat Mat Peak Influence 400 | . 143 353 400 Initial 59 | . . 59 52 Average 158 | . 90 161 218 Maximum Alert Level 2 | . . 1 2 Low Security (%) 64 | . 100 64 28 Level 1 34 | . . 35 69 Level 2 . | . . . 2 Level 3 . | . . . . Level 4 . | . . . . Level 5 . | . . . . High Security . | . . . . Max Security . | . . . . Squads Dispatched 5 | . 1 2 2 Investigation . | . . . . Extermination . | . . . . Reinforcement 5 | . 1 2 2 Assault . | . . . . Garrison . | . . . . Intercept . | . . . . Searches Triggered . | . . . . Construction Impeded . | . . . . Haulers Reinforced . | . . . . Active Scanning Responses . | . . . . Cargo Convoy Interrupts . | . . . . Stealth | -11 -10 -9 -8 --------- Run | Yrd Mat Mat Mat Distress Signals 6 | . 1 3 2 Communications Jammed . | . . . . Distress Signals . | . . . . Times Spotted 68 | . 9 33 26 Peak Tracking Total 9 | . 4 5 9 Tactical Retreats . | . . . . Traps | -11 -10 -9 -8 ------- Run | Yrd Mat Mat Mat Traps Triggered . | . . . . Indirectly . | . . . . Trap Hack Attempts . | . . . . Triggered . | . . . . Disarmed . | . . . . Reprogrammed . | . . . . Reused . | . . . . Traps Extracted . | . . . . Installed . | . . . . Triggered . | . . . . Machines | -11 -10 -9 -8 ---------- Run | Yrd Mat Mat Mat Machines Disabled 4 | . 1 2 1 Max in Single Turn 1 | . 1 1 1 Machines Repaired . | . . . . Machines Dismantled . | . . . . Machines Sabotaged . | . . . . Overloaded Fab Kills . | . . . . Hacking | -11 -10 -9 -8 --------- Run | Yrd Mat Mat Mat Machines Accessed 10 | . 4 5 1 Terminals 10 | . 4 5 1 Fabricators . | . . . . Repair Stations . | . . . . Recycling Units . | . . . . Scanalyzers . | . . . . Garrison Access . | . . . . Total Hacks 32 | . 14 16 2 Successful 15 | . 7 7 1 Failed 17 | . 7 9 1 Catastrophic 1 | . . 1 . Database Lockouts . | . . . . Manual 26 | . 9 15 2 Terminals 32 | . 14 16 2 Fabricators . | . . . . Repair Stations . | . . . . Recycling Units . | . . . . Scanalyzers . | . . . . Garrison Access . | . . . . Terminal Hacks 6 | . 3 3 . Part Schematic 1 | . . 1 . Prototype ID Bank 1 | . 1 . . Unreport Threat 2 | . . 2 . Locate Traps 1 | . 1 . . Hauler Manifests 1 | . 1 . . Fabricator Hacks . | . . . . Repair Station Hacks . | . . . . Recycling Unit Hacks . | . . . . Scanalyzer . | . . . . Garrison Access Hacks . | . . . . Unauthorized Hacks 9 | . 4 4 1 Terminals 9 | . 4 4 1 Botnet 8 | . 3 4 1 Operators 1 | . 1 . . Fabricators . | . . . . Repair Stations . | . . . . Recycling Units . | . . . . Scanalyzers . | . . . . Garrison Access . | . . . . Data Cores Recovered . | . . . . Used . | . . . . Hacking Detections 9 | . 3 5 1 Full Trace Events 1 | . . 1 . Feedback Events . | . . . . Feedback Blocked . | . . . . Robot Schematics Acquired . | . . . . Robots Built . | . . . . Authchips . | . . . . Time . | . . . . Total Robot Build Rating . | . . . . Part Schematics Acquired 1 | . . 1 . Parts Built . | . . . . Authchips . | . . . . Time . | . . . . Total Part Build Rating . | . . . . Parts Repaired . | . . . . Time . | . . . . Parts Recycled . | . . . . Recycled Matter . | . . . . Retrieved Matter . | . . . . Retrieved Components . | . . . . Parts Scanalyzed . | . . . . Part Schematics Acquired . | . . . . Parts Damaged . | . . . . Bothacking | -11 -10 -9 -8 ------------ Run | Yrd Mat Mat Mat Used RIF Installer . | . . . . Robots Hacked . | . . . . Non-combat . | . . . . Combat . | . . . . Robot Hacks Applied . | . . . . Relay Couplers Released . | . . . . Fabnet Peak Effective % . | . . . . Robots Rewired . | . . . . Allies Hacked . | . . . . Hacks Repelled . | . . . . Allies | -11 -10 -9 -8 -------- Run | Yrd Mat Mat Mat Total Allies . | . . . . Largest Group . | . . . . Highest-Rated Group . | . . . . Highest-Rated Ally . | . . . . Total Orders . | . . . . Ally Attacks . | . . . . Total Damage . | . . . . Kills . | . . . . Allies Corrupted . | . . . . Allies Melted . | . . . . Intel | -11 -10 -9 -8 ------- Run | Yrd Mat Mat Mat Robot Analysis Total . | . . . . Derelict Logs Recovered . | . . . . Drone Launches . | . . . . Drone Recoveries . | . . . . Exploration | -11 -10 -9 -8 ------------- Run | Yrd Mat Mat Mat Turns Passed 1688 | . 347 994 347 Spaces Moved 910 | 1 253 560 96 Core 8 | . . . 8 Treads 21 | . . 11 10 Legs 6 | 1 5 . . Wheels 875 | . 248 549 78 Hover . | . . . . Flight . | . . . . Fastest Speed 95 | 120 95 95 105 Average Speed 116 | 120 102 116 152 Slowest Speed 550 | 120 120 240 550 Overloaded Moves . | . . . . Propulsion Burnouts . | . . . . Robots Hopped . | . . . . Cave-ins Triggered . | . . . . Exploration Rate (%) 29 | 2 51 53 10 Regions Visited 3 Branch Regions . Pre-discovered Areas . | . . . . Known Exits Taken 2 | . 1 1 . Unknown Exits Taken 1 | 1 . . . Scrap Searched . | . . . . Spaces Dug . | . . . . Terrain Destroyed . | . . . . Melee . | . . . . Projectile . | . . . . AOE . | . . . . Terrain Rammed . | . . . . Walls Destroyed . | . . . . Machines Disabled . | . . . . Actions | -11 -10 -9 -8 --------- Run | Yrd Mat Mat Mat Total 1252 | . 303 757 192 Wait 56 | . . 48 8 Move 907 | . 252 559 96 Hop . | . . . . Pick Up 25 | . 13 10 2 Fast Attach 12 | . 1 7 4 Attach 15 | . 1 4 10 Detach 1 | . . . 1 Swap 24 | . 6 16 2 Drop 38 | . 8 27 3 Fire 174 | . 22 86 66 Melee . | . . . . Ram . | . . . . Kick . | . . . . Crush . | . . . . Escape Stasis . | . . . . Rewire . | . . . . Trap . | . . . . Miscellaneous . | . . . . Route ------- -11/Scrapyard -10/Materials (discovered 2 exits: *Mat / [*Min]) -9/Materials (discovered 2 exits: *Mat / *Min) -8/Materials History --------- Turn | Location | Event 1 | -11/Scrapyard | Discovered new exit (range 0) 1 | -11/Scrapyard | Entered Materials 26 | -10/Materials | Discovered new exit (range 16) 306 | -10/Materials | Discovered new exit (range 15) 311 | -10/Materials | Build established: Mutant 347 | -10/Materials | Identified exit to Materials 348 | -10/Materials | Entered another Materials area 348 | -9/Materials | Evolved 2 slots: Propulsion x2 1070 | -9/Materials | Discovered new exit (range 16) 1160 | -9/Materials | Identified exit to Mines 1295 | -9/Materials | Discovered new exit (range 11) 1341 | -9/Materials | Identified exit to Materials 1342 | -9/Materials | Entered another Materials area 1342 | -8/Materials | Evolved 2 slots: Utility x2 1585 | -8/Materials | Lost 7 parts (1p4n1u1w) 1588 | -8/Materials | Core integrity fell below 50% 1674 | -8/Materials | Core integrity fell below 20% 1689 | -8/Materials | Destroyed by G-47 Trooper with Particle Gun Last Messages --------------- 01668_ B-36 Bruiser destroyed. 01668_ Switching to secondary target: G-47 Trooper. 01669_ Penetrated by Slug. 01670_ S-10 Pest destroyed. 01673_ Switching to secondary target: G-47 Trooper. 01674_ Autogun destroyed. 01676_ S-10 Pest destroyed. 01678_ Penetrated by Slug. 01679_ R-06 Scavenger collects Heat Sink. 01681_ Penetrated by Slug. 01683_ Autogun destroyed. 01684_ Critical hit (Burn: +37). 01684_ Penetrated by Slug. 01686_ H-55 Commando suffers critical hit (Burn). 01687_ Slug penetrates Wall. 01689_ H-55 Commando heat short circuits Carbon-fiber Leg. Map ----- +----------------------------------------------------+ | ?????????????????????????????????????????????????? | | ?????????????????????????????????????????????????? | | ?????????????????????????????????????????????????? | | ?????????????????????????????????????????????????? | | ?????????????????????????????????????????????????? | | ?????????????????????????????????????????????????? | | ?????????????????????????????????????????????????? | | ?????????????????????????????????????????????????? | | ?????????????????????????????????????????????????? | | ?????????????????????????????????????????????????? | | ?????????????????????????????????????????????????? | | ?????????????????????????????????????????????????? | | ?????????????????????????????????????????????????? | | ?????????????????????????????????????????????????? | | ?????????????????????????????????????????????????? | | ??????????????????#########??????????????????????? | | ??????????????????? ##?????????????????????? | | ???????????????????? ??????????????????????? | | ????????????????????? %#??????????????######### | | ??????????????????????# #??????????????# | | ??????????????????????# % #??????????????# ##### | | ??????????????????????# %#??????????????# #???? | | ??????????????????????#t #??????????????# #???? | | ??????????????????????#a #??????????????# #???? | | ??????????????????????# r#??????????????# #???? | | ?????????????????????##!%@##????????????## ##??? | | ??????????????######## =%############## #??? | | ??????????????# =!h% ! #??? | | ??????????????# =*gg!% ! #??? | | ??????????????# %u!*%!! %% %[ #??? | | ??????????????##+#####=%%%!#!! ######+### #??? | | ?????????????????????###=###* #?# #######??? | | ???????????????????????#*#?# #?#"" #????????? | | ???????????????????????# #?# #?#""" #????????? | | ???????????????????????# #?# #?#""" #????????? | | ???????????????????????# #?# #?#""" #????????? | | ???????????????????????# ??# #?#""" #????????? | | ???????????????????????# ??# #?# #????????? | | ???????????????????????#"??# #?#"" #????????? | | ??????????????????????? ???# #?#"T ] #????????? | | ??????????????????????? ???# #?#"" #????????? | | ??????????????????????? ???# #?# #????????? | | ??????????????????????? ??? ?########????????? | | ??????????????????????????? ?????????????????? | | ???????????????????????????? ??????????????????? | | ?????????????????????????????????????????????????? | | ?????????????????????????????????????????????????? | | ?????????????????????????????????????????????????? | | ?????????????????????????????????????????????????? | | ?????????????????????????????????????????????????? | +----------------------------------------------------+ Best States ------------- Heat Dissipation 31 Energy Generation 14 Energy Capacity 280 Matter Stores 300 Matter Capacity 300 Sight Range 16 Robot Scan Range 14 Terrain Scan Density 10 Evasion (%) 41 Recoil Reduction 4 Offensive Hacking 10 Item Schematics ----------------- Arm. Wheel | -9/Materials | Hacked Robot Schematics ------------------ None Fabricated ------------ Nothing Alien Tech Used ----------------- None Achievements -------------- None Challenges ------------ None Game ------ Seed WardroneGatlingPendant Manual? 0 Play Time 00:18:32 Cumulative 193.1 hours Start 2024.05.25 @ 13:14:00 End 2024.05.25 @ 13:28:49 Sessions 1 Manual Loads 0 Difficulty Rogue Special Mode None Game No. 357 Rogue 357 Adventurer 0 Explorer 0 Win Type - Total 0 Types 0/0/0/0/0/0/0/0/0 Lore% 44 Gallery% 55 Achievement% 39 Wizard Run 0 Options --------- Layout 1 ASCII 0 Keyboard 0 Movement Mouse Keybinds 0 Fullscreen 1 Font 24/Smallcaps Map View 50x40 Zoom Use 0% Tactical HUD 1 Map Filters NONE Filters NONE Steam 1 RUN: b7054daa-a4f8-44d2-891a-206f427e2a57